bitfinex-derivatives/quotes_ETHF0:USTF0_20260213
["timestamp","ask_amount","ask_price","bid_price","bid_amount"]
[1771001521719,0.53537284,2068.0,2067.0,0.00390912]
[1771001522219,0.53537284,2068.0,2066.5,0.55573177]
[1771001522725,7.10128876,2068.1,2066.3,0.79785177]
[1771001522726,0.53537284,2067.8,2066.3,0.79785177]
[1771001522933,0.53537284,2067.5,2066.1,0.55573177]
[1771001523229,4.569,2067.7,2066.1,0.55573177]
[1771001523230,0.53537284,2067.4,2066.1,0.80192818]
[1771001523532,0.53901818,2067.4,2066.1,0.24619641]
[1771001523730,0.53901818,2067.4,2066.1,0.80192818]
[1771001524228,0.53901818,2067.4,2066.1,0.24619641]
[1771001524625,0.53537284,2067.0,2065.6,0.55573177]
[1771001524829,0.53537284,2066.8,2065.6,0.55573177]
[1771001525429,0.53537284,2066.6,2065.6,0.55573177]
[1771001525628,0.53537284,2066.6,2065.6,0.56031708]
[1771001527324,4.574,2066.5,2065.6,0.56031708]
[1771001527533,0.53537284,2066.4,2065.6,0.56031708]
[1771001527728,0.53537284,2066.4,2065.6,0.00458531]
[1771001527928,0.53537284,2066.4,2065.6,0.56031708]
[1771001530528,0.53537284,2066.7,2065.8,0.55573177]
[1771001530728,4.593,2067.1,2066.0,0.55573177]
[1771001530929,0.53537284,2066.9,2066.0,0.55573177]
[1771001531831,0.53537284,2066.9,2065.9,0.79791177]
[1771001532033,0.53537284,2066.9,2066.0,0.55573177]
[1771001532234,0.53537284,2066.9,2065.8,0.55573177]
[1771001534432,0.53537284,2066.9,2065.6,0.56031708]
[1771001536432,0.53537284,2066.7,2065.6,0.56031708]
[1771001536741,0.53537284,2066.5,2065.8,0.55573177]
[1771001538231,4.662,2066.4,2065.8,0.55573177]
[1771001538432,5.19737284,2066.4,2065.8,0.55573177]
[1771001538836,0.53537284,2066.3,2065.7,0.2422]
[1771001539232,0.53537284,2066.3,2065.7,0.79793177]
[1771001539438,0.53537284,2066.3,2065.8,0.55573177]
[1771001540329,0.53537284,2066.3,2065.7,0.2422]
[1771001540642,0.53537284,2066.3,2065.1,6.33693717]
[1771001540643,0.53537284,2066.3,2065.2,0.79798177]
[1771001540832,0.53537284,2066.3,2065.0,0.55573177]
[1771001541136,0.53537284,2066.3,2065.4,0.55573177]
[1771001541441,0.53537284,2066.1,2065.4,0.55573177]
[1771001541738,5.21737284,2066.0,2065.4,0.56104144]
[1771001542038,0.53537284,2065.8,2065.1,0.55573177]
[1771001542637,0.53537284,2065.8,2064.9,0.55573177]
[1771001543030,0.53892136,2065.8,2064.9,0.56137205]
[1771001544138,0.00354852,2065.8,2065.1,0.55573177]
[1771001544535,0.00354852,2065.8,2065.3,0.55573177]
[1771001544729,0.53892136,2065.8,2065.3,0.55573177]
[1771001544935,0.00354852,2065.8,2065.3,0.55573177]
[1771001546641,0.53892136,2065.8,2065.3,0.55573177]
[1771001546837,0.53892136,2065.8,2065.0,4.2781047]
[1771001546838,0.53892136,2065.8,2065.1,0.55573177]
[1771001547234,0.53537284,2065.6,2064.9,0.00564028]
[1771001547741,5.29137284,2065.6,2064.9,0.56137205]
[1771001548140,4.756,2065.6,2064.9,0.56137205]
[1771001548340,0.53892136,2065.8,2064.9,0.56137205]
[1771001548541,0.53537284,2065.7,2065.1,0.55573177]
[1771001549441,0.53537284,2065.7,2065.0,0.24228]
[1771001549842,0.53537284,2065.7,2065.1,0.55573177]
[1771001550445,4.76454852,2065.8,2065.1,0.55573177]
[1771001550643,0.00354852,2065.8,2065.3,0.55573177]
[1771001550849,0.00354852,2065.8,2065.4,0.53886638]
[1771001551042,40.8,2065.9,2065.4,0.53886638]
[1771001551542,41.35734802,2065.9,2065.4,0.53886638]
[1771001552147,41.36227555,2065.9,2065.4,4.81697108]
[1771001552646,41.36227555,2065.9,2065.5,0.53886638]
[1771001553048,40.80492753,2065.9,2065.5,0.53886638]
[1771001553450,40.80492753,2065.9,2065.5,4.81697108]
[1771001553745,0.55734802,2066.5,2065.6,0.53886638]
[1771001554048,0.55734802,2066.3,2065.5,4.2781047]
[1771001554251,0.55734802,2066.3,2065.6,0.53886638]
[1771001554452,0.55734802,2066.3,2065.6,4.81697108]
[1771001554653,0.55734802,2066.3,2065.6,0.53886638]
[1771001554851,41.35734802,2066.2,2065.6,0.53886638]
[1771001555054,0.55734802,2066.5,2065.9,0.53886638]
[1771001555355,4.854,2066.6,2066.0,0.53886638]
[1771001555547,5.41134802,2066.6,2066.0,0.53886638]
[1771001555948,40.8,2066.5,2066.1,0.53886638]
[1771001556249,40.80475848,2066.5,2066.1,0.53886638]
[1771001556452,40.80475848,2066.5,2066.2,0.53886638]
[1771001556754,4.866,2066.9,2066.3,0.53886638]
[1771001556955,5.44793818,2066.9,2066.3,0.53886638]
[1771001557642,40.8,2066.8,2066.3,0.53886638]
[1771001559246,0.00491876,2066.9,2066.3,0.53886638]
[1771001559652,40.8,2066.8,2066.3,0.53886638]
[1771001562353,41.38193818,2066.8,2066.3,0.53886638]
[1771001563853,40.8,2066.8,2066.3,0.53886638]
[1771001565754,41.38193818,2066.8,2066.3,0.53886638]
[1771001566255,0.00491876,2066.9,2066.5,0.55562459]
[1771001566556,5.034,2067.2,2066.5,0.55964951]
[1771001566959,5.61593818,2067.2,2066.5,0.55964951]
[1771001567152,0.58193818,2067.1,2066.5,0.00402492]
[1771001567352,0.58193818,2066.9,2066.5,0.00402492]
[1771001567554,0.58193818,2066.9,2066.2,4.2781047]
[1771001567754,0.58193818,2066.9,2066.1,8.89472929]
[1771001568059,0.58193818,2066.9,2066.2,0.55562459]
[1771001568657,0.58796856,2066.9,2066.2,0.56154146]
[1771001568854,0.58796856,2066.9,2066.2,0.00591687]
[1771001569259,0.58193818,2066.7,2066.2,0.56154146]
[1771001569563,0.58796856,2066.9,2066.2,0.56154146]
[1771001569762,0.58193818,2066.8,2066.2,0.56154146]
[1771001571265,0.58193818,2066.8,2066.3,0.55562459]
[1771001571463,5.06803038,2066.9,2066.3,0.55562459]
[1771001571758,0.00603038,2066.9,2066.5,0.55562459]
[1771001572062,0.58796856,2066.9,2066.5,0.55562459]
[1771001572265,0.58796856,2066.9,2066.4,0.24212]
[1771001572461,0.58193818,2067.2,2066.5,0.55562459]
[1771001573159,41.38193818,2067.1,2066.5,0.55562459]
[1771001573364,0.58193818,2067.0,2066.5,0.55562459]
[1771001573560,0.58793304,2067.0,2066.5,0.55562459]
[1771001574266,0.58793304,2067.0,2066.4,3.64170758]
[1771001574664,0.00599486,2067.0,2066.5,0.55562459]
[1771001574862,0.00599486,2067.0,2066.5,3.39958758]
[1771001575067,0.00599486,2067.0,2066.6,0.55562459]
[1771001575961,0.00599486,2067.0,2066.4,4.5202247]
[1771001575962,0.58793304,2067.0,2066.4,3.08608299]
[1771001576161,0.58793304,2067.0,2066.5,0.55562459]
[1771001576556,0.58793304,2067.0,2066.4,3.64170758]
[1771001576966,0.58793304,2067.0,2066.4,0.79774459]
[1771001577165,0.58793304,2067.0,2066.4,3.64170758]
[1771001577364,0.58793304,2067.0,2066.3,6.91896299]
[1771001577669,0.58793304,2067.0,2066.3,4.075]
[1771001577967,0.58793304,2067.0,2066.3,4.63062459]
[1771001578164,0.58793304,2067.0,2066.3,7.47458758]
[1771001578566,0.00599486,2067.0,2066.4,3.39958758]
[1771001578867,0.58793304,2067.0,2066.5,0.55562459]
[1771001579168,0.58793304,2067.0,2066.4,2.84396299]
[1771001580366,0.58793304,2067.0,2066.2,0.00591687]
[1771001580669,2.5321268,2066.5,2065.7,0.58514253]
[1771001580868,5.208,2066.5,2065.7,0.58514253]
[1771001581262,5.208,2066.5,2065.5,0.58514253]
[1771001581461,5.208,2066.5,2065.6,0.588226]
[1771001581670,0.00599486,2067.0,2066.0,0.588226]
[1771001581867,0.00599486,2067.0,2066.1,0.588226]
[1771001582069,0.24206,2066.9,2065.9,5.70863128]
[1771001582271,2.5321268,2066.7,2065.7,0.588226]
[1771001582471,5.207,2066.8,2065.7,0.588226]
[1771001582666,5.207,2066.8,2065.8,0.588226]
[1771001584868,2.5321268,2066.7,2065.7,0.58542237]
[1771001585063,2.5321268,2066.4,2065.5,0.00370859]
[1771001585273,5.4131005,2066.7,2065.5,0.58913096]
[1771001585467,40.8,2066.3,2065.5,0.58913096]
[1771001585668,40.8,2066.3,2065.7,0.58502906]
[1771001586264,40.8,2066.3,2065.8,0.58502906]
[1771001586574,0.00599486,2067.0,2066.2,0.58502906]
[1771001586770,0.00599486,2067.0,2066.2,6.29366034]
[1771001587067,0.00599486,2067.0,2066.0,0.24217]
[1771001587068,40.8,2066.9,2066.3,0.58502906]
[1771001588375,0.00599486,2067.0,2066.3,6.29366034]
[1771001588669,0.00599486,2067.0,2066.4,0.58724939]
[1771001589466,40.8,2067.5,2066.7,0.58895644]
[1771001590367,40.80590166,2067.5,2066.7,0.58895644]
[1771001591376,40.80590166,2067.5,2066.8,0.59068133]
[1771001592072,40.31522166,2067.5,2066.9,0.59068133]
[1771001592279,7.8411268,2067.9,2066.9,0.5877305]
[1771001592472,5.313,2067.8,2066.7,0.5877305]
[1771001593172,40.8,2067.7,2066.7,0.5877305]
[1771001594279,40.8,2067.7,2066.9,0.59174184]
[1771001594473,40.8,2067.7,2067.2,0.24203]
[1771001594677,5.4131005,2068.8,2067.5,0.59174184]
[1771001594678,5.327,2068.4,2067.5,0.59174184]
[1771001594979,2.5321268,2068.8,2067.5,0.59174184]
[1771001595172,5.331,2068.7,2067.7,0.59174184]
[1771001595675,40.8,2068.6,2067.7,0.59628463]
[1771001598178,40.8,2068.6,2067.7,0.00454279]
[1771001598377,40.8,2068.6,2067.2,0.59311807]
[1771001599578,40.8,2068.6,2067.2,0.59763659]
[1771001600779,40.8,2068.6,2067.4,0.59769923]
[1771001600780,5.394,2068.5,2067.4,0.59769923]
[1771001600973,5.394,2068.5,2067.3,0.24201]
[1771001601374,40.8,2068.4,2067.3,0.84137288]
[1771001601581,40.8,2068.4,2067.4,0.59936288]
[1771001606679,40.8,2068.4,2067.3,0.24201]
[1771001606680,41.04189,2068.4,2067.2,0.00451852]
[1771001611892,0.24193,2068.1,2066.8,0.5888469]
[1771001612191,41.04194,2067.9,2066.5,0.5888469]
[1771001612990,41.04194,2067.9,2066.5,0.59303871]
[1771001614093,41.04194,2067.9,2066.7,0.58900772]
[1771001614889,40.8,2067.9,2066.7,0.58900772]
[1771001615097,40.8,2067.9,2066.6,0.2421]
[1771001615098,5.549,2067.8,2066.9,0.58900772]
[1771001615897,40.8,2067.9,2067.3,0.58621069]
[1771001616195,40.8,2067.9,2067.5,0.58621069]
[1771001616395,0.00340393,2068.7,2067.5,0.58621069]
[1771001616598,5.569,2068.6,2067.8,0.58623012]
[1771001616994,40.8,2068.5,2067.8,0.58623012]
[1771001617195,46.369,2068.5,2067.9,0.58623012]
[1771001617795,46.369,2068.5,2067.8,4.26929328]
[1771001618100,46.369,2068.5,2067.7,0.58953224]
[1771001619596,46.369,2068.5,2067.6,0.59538333]
[1771001622394,46.61088,2068.5,2067.3,0.59467522]
[1771001622601,40.8,2068.5,2067.6,0.59467522]
[1771001622805,46.469,2068.5,2067.7,0.59467522]
[1771001623800,46.469,2068.5,2067.5,0.59414636]
[1771001624400,46.469,2068.5,2067.6,0.59414636]
[1771001625002,5.7,2068.4,2067.6,0.59414636]
[1771001627406,5.7,2068.4,2067.5,0.60535828]
[1771001627606,5.727,2068.3,2067.5,0.60535828]
[1771001627804,5.727,2068.3,2067.6,0.60535828]
[1771001628205,5.73,2068.3,2067.7,0.60535828]
[1771001628503,46.532,2068.5,2067.9,0.60535828]
[1771001630505,40.8,2068.5,2067.9,0.60535828]
[1771001630810,40.8,2068.5,2068.0,0.60560651]
[1771001631006,40.8,2068.5,2068.0,0.61086037]
[1771001631202,0.00340393,2068.7,2068.4,0.60560651]
[1771001631406,5.79,2069.5,2068.6,0.61367456]
[1771001631805,15.0,2069.4,2068.7,0.61367456]
[1771001632201,40.8,2069.3,2068.7,0.61367456]
[1771001632810,15.0,2069.2,2068.5,0.61367456]
[1771001633009,5.808,2069.1,2068.5,0.61367456]
[1771001634905,15.0,2069.0,2068.5,0.61367456]
[1771001635601,40.8,2069.3,2068.7,0.6167451]
[1771001635803,15.0,2069.2,2068.7,0.6167451]
[1771001636311,40.8,2069.3,2068.7,0.6167451]
[1771001636610,55.8,2069.3,2068.7,0.6167451]
[1771001636800,40.8,2069.3,2068.7,0.6167451]
[1771001637911,2.8809737,2070.5,2068.5,4.26929328]
[1771001637912,3.1226037,2070.6,2068.9,0.61539271]
[1771001638205,11.10537346,2071.2,2069.3,0.61286817]
[1771001638206,15.0,2070.4,2069.3,0.61286817]
[1771001638405,5.901,2070.5,2069.5,0.61286817]
[1771001638606,15.0,2070.4,2069.5,0.61286817]
[1771001639015,40.8,2070.3,2069.5,0.61642487]
[1771001639204,15.0,2070.2,2069.5,0.61642487]
[1771001641412,40.8,2070.3,2069.7,0.61123997]
[1771001641607,55.8,2070.3,2069.7,0.61123997]
[1771001642010,40.8,2070.3,2069.7,0.61123997]
[1771001642414,15.0,2070.2,2069.5,0.61479667]
[1771001642613,15.0,2070.2,2069.5,0.0035567]
[1771001642806,15.0,2070.2,2069.0,0.61123997]
[1771001643211,15.0,2070.2,2068.7,4.74723997]
[1771001643417,15.0,2070.2,2068.8,0.61119743]
[1771001643813,15.0,2070.2,2068.8,0.61615727]
[1771001644315,15.0,2070.2,2069.0,0.61119743]
[1771001644521,46.804,2070.1,2068.8,2.8349852]
[1771001644717,46.804,2070.1,2068.9,0.61119743]
[1771001644917,15.0,2070.0,2068.9,0.61119743]
[1771001645722,15.0,2070.0,2068.8,0.00495984]
[1771001646525,0.2417,2070.0,2068.8,0.00495984]
[1771001646913,15.0,2069.9,2068.8,0.61416158]
[1771001647117,15.0,2069.9,2069.0,0.60920174]
[1771001647318,21.047,2069.9,2069.0,0.60920174]
[1771001648016,21.047,2069.9,2069.2,0.60934917]
[1771001648419,15.0,2069.9,2069.2,0.60934917]
[1771001649119,6.073,2069.8,2069.0,0.60934917]
[1771001649425,6.073,2069.8,2068.8,0.61430901]
[1771001649724,15.0,2069.7,2068.8,0.61430901]
[1771001649925,40.8,2069.6,2068.8,0.61430901]
[1771001651730,40.82,2069.6,2068.8,0.61430901]
[1771001652424,15.0,2069.5,2068.8,0.61430901]
[1771001653327,40.82,2069.6,2068.8,0.61430901]
[1771001653631,15.0,2069.5,2068.8,0.61430901]
[1771001654231,15.0,2069.5,2068.9,0.60945657]
[1771001654628,40.82,2069.6,2068.9,0.60945657]
[1771001654828,55.82,2069.6,2068.9,0.60945657]
[1771001655128,55.82,2069.6,2068.9,4.87874985]
[1771001655324,55.82,2069.6,2069.0,0.60945657]
[1771001655632,55.82,2069.6,2068.8,0.00495984]
[1771001655633,55.82,2069.6,2068.8,4.88365017]
[1771001655831,15.02,2069.6,2068.8,0.61435689]
[1771001656030,0.02,2069.6,2069.0,0.60939705]
[1771001656428,0.02,2069.6,2069.2,0.60939705]
[1771001656628,40.8,2069.8,2069.2,0.60939705]
[1771001656828,55.8,2069.8,2069.2,0.60939705]
[1771001657232,55.8,2069.8,2069.3,0.60939705]
[1771001657434,40.8,2069.8,2069.3,0.60939705]
[1771001658229,55.8,2069.8,2069.3,0.60939705]
[1771001658927,40.8,2069.8,2069.3,0.60939705]
[1771001659123,15.0,2069.7,2069.3,0.60939705]
[1771001659323,0.00627212,2070.4,2069.4,0.85827268]
[1771001659529,13.71180831,2070.3,2069.6,0.61487423]
[1771001659730,13.71180831,2070.3,2069.7,0.61487423]
[1771001659930,40.8,2070.2,2069.7,0.61487423]
[1771001660129,40.8,2070.2,2069.7,4.88416751]
[1771001660330,13.71180831,2070.1,2069.8,0.61487423]
[1771001660531,13.71180831,2070.1,2069.9,0.61487423]
[1771001660836,0.00627212,2070.4,2069.9,0.61487423]
[1771001661033,54.51180831,2070.3,2069.9,0.61487423]
[1771001662133,54.51180831,2070.3,2069.8,0.61624641]
[1771001662527,60.85080831,2070.3,2069.6,4.26929328]
[1771001662835,63.37411664,2070.3,2069.3,9.07053969]
[1771001663337,60.85080831,2070.3,2069.4,0.61659491]
[1771001663530,60.85080831,2070.3,2069.4,4.88588819]
[1771001663836,60.85080831,2070.3,2069.3,9.89363128]
[1771001663837,54.51180831,2070.3,2069.7,0.61659491]
[1771001664137,54.51180831,2070.3,2069.8,0.61659491]
[1771001665138,54.51180831,2070.3,2069.9,0.61659491]
[1771001665330,40.8,2070.3,2069.9,0.61659491]
[1771001666036,13.71180831,2070.2,2069.8,4.88490331]
[1771001666838,13.71180831,2070.2,2069.8,0.61561003]
[1771001667338,13.71180831,2070.2,2069.6,4.26929328]
[1771001667538,13.71180831,2070.2,2069.5,4.26929328]
[1771001667935,13.71180831,2070.2,2069.5,4.88358895]
[1771001668434,40.8,2070.1,2069.5,4.88358895]
[1771001668641,40.8,2070.1,2069.6,4.88358895]
[1771001668841,40.8,2070.1,2069.7,0.61429567]
[1771001669338,13.71180831,2070.2,2069.7,0.61429567]
[1771001669640,13.71180831,2070.0,2069.7,0.61429567]
[1771001669838,13.71180831,2070.2,2069.7,0.61429567]
[1771001670234,40.8,2070.1,2069.6,4.26929328]
[1771001670440,40.8,2070.1,2069.6,4.88513305]
[1771001671135,40.8,2070.1,2069.6,4.26929328]
[1771001671334,13.71180831,2070.0,2069.5,4.26929328]
[1771001671534,13.71180831,2070.0,2069.4,9.09713305]
[1771001671731,13.71180831,2070.0,2069.4,8.48129328]
[1771001671939,47.313,2070.1,2069.3,4.26929328]
[1771001672132,13.71180831,2069.9,2069.3,4.26929328]
[1771001672338,13.71180831,2069.9,2069.3,4.88448826]
[1771001672931,13.71180831,2069.9,2069.2,8.51429328]
[1771001674038,13.71180831,2069.9,2069.3,0.61581018]
[1771001674540,13.71180831,2069.9,2069.2,8.51429328]
[1771001675939,6.596,2069.8,2069.2,8.51429328]
[1771001677139,40.8,2070.1,2069.3,0.6159712]
[1771001677345,20.32480831,2070.0,2069.3,4.26929328]
[1771001677541,20.32480831,2070.0,2069.2,4.26929328]
[1771001678445,20.32480831,2070.0,2069.1,4.26929328]
[1771001678644,22.84811664,2070.0,2069.0,8.55329328]
[1771001678939,22.84811664,2070.0,2069.0,4.284]
[1771001679644,22.84811664,2070.0,2068.9,4.88837871]
[1771001680445,22.84811664,2070.0,2068.8,4.51608312]
[1771001681239,22.84811664,2070.0,2068.9,0.61807023]
[1771001682349,2.52330833,2069.7,2068.8,0.00495984]
[1771001682542,20.40980831,2069.6,2068.8,0.00495984]
[1771001683043,13.71180831,2069.6,2068.8,0.62400962]
[1771001683245,20.42080831,2069.6,2068.9,0.61904978]
[1771001683440,20.42080831,2069.6,2069.1,0.61904978]
[1771001683640,13.71180831,2069.6,2069.1,0.61904978]
[1771001683841,40.8,2070.1,2069.2,4.88764719]
[1771001684045,13.19113831,2070.0,2069.4,0.86012391]
[1771001684345,13.19113831,2070.3,2069.6,0.61835391]
[1771001684547,40.8,2070.2,2069.6,0.61835391]
[1771001685549,13.19113831,2070.1,2069.6,0.61835391]
[1771001685842,13.19113831,2070.1,2069.5,4.298]
[1771001686048,19.94013831,2070.1,2069.4,0.62240745]
[1771001687346,6.749,2070.1,2069.4,0.62240745]
[1771001687545,13.19113831,2070.0,2069.4,0.62240745]
[1771001687746,13.19113831,2070.0,2069.2,4.88874432]
[1771001688046,13.19113831,2070.0,2069.3,0.61945104]
[1771001688252,13.19113831,2070.0,2069.4,0.61945104]
[1771001688546,13.19113831,2070.0,2069.5,0.61945104]
[1771001688944,6.801,2070.1,2069.5,0.61945104]
[1771001689145,13.19113831,2070.0,2069.5,0.61945104]
[1771001689644,13.19113831,2070.0,2069.6,0.61982647]
[1771001691038,40.8,2070.2,2069.6,0.61982647]
[1771001691239,13.19113831,2070.1,2069.7,0.61982647]
[1771001692752,13.19113831,2070.1,2069.6,0.62004798]
[1771001693054,13.19113831,2070.1,2069.7,0.62004798]
[1771001693952,40.8,2070.2,2069.7,0.62004798]
[1771001694255,53.20566534,2070.2,2069.8,0.61970046]
[1771001694654,0.00627212,2070.4,2070.0,0.61970046]
[1771001694854,12.40566534,2070.3,2070.0,0.61970046]
[1771001695455,40.80627212,2070.4,2070.0,0.61970046]
[1771001695651,12.40566534,2070.3,2070.0,4.97170046]
[1771001696044,12.40566534,2070.3,2070.0,4.352]
[1771001696249,12.40566534,2070.3,2069.8,0.62074056]
[1771001696647,12.40566534,2070.3,2069.7,4.88750376]
[1771001697052,12.40566534,2070.3,2069.8,0.62074056]
[1771001697656,12.40566534,2070.3,2069.7,4.2667632]
[1771001697850,12.40566534,2070.3,2069.7,4.8842565]
[1771001698755,12.29566534,2070.3,2069.7,4.8842565]
[1771001699056,12.29566534,2070.3,2069.7,0.6174933]
[1771001699457,12.29566534,2070.3,2069.7,4.8842565]
[1771001700246,12.29566534,2070.3,2069.6,8.6257632]
[1771001700453,12.29566534,2070.3,2069.5,5.70863128]
[1771001700454,19.30466534,2070.3,2069.5,4.2667632]
[1771001700760,19.30466534,2070.3,2069.7,0.86097746]
[1771001700960,19.30466534,2070.3,2069.8,0.61924746]
[1771001701361,19.30466534,2070.3,2069.7,0.85128393]
[1771001701554,40.8,2070.2,2069.7,0.85128393]
[1771001701755,40.8,2070.2,2069.7,0.60955393]
[1771001701957,40.8,2070.2,2069.5,4.2667632]
[1771001702158,12.29566534,2070.1,2069.5,4.2667632]
[1771001702358,12.29566534,2070.1,2069.5,4.87631713]
[1771001702559,12.29566534,2070.1,2069.6,0.60955393]
[1771001702955,11.80880534,2070.1,2069.9,0.60955393]
[1771001703161,0.00627212,2070.4,2070.0,0.60955393]
[1771001703361,10.79642534,2070.3,2070.0,0.60955393]
[1771001704061,9.77377534,2070.3,2070.0,4.87631713]
[1771001704259,9.25287534,2070.3,2070.1,0.60945242]
[1771001704460,8.04385534,2070.3,2070.1,0.60945242]
[1771001704662,8.04385534,2070.3,2070.0,5.11791562]
[1771001704861,8.04385534,2070.3,2070.0,0.85115242]
[1771001705063,8.04385534,2070.3,2069.5,5.01145242]
[1771001705364,8.04385534,2070.3,2069.5,0.60945242]
[1771001705563,10.56716367,2070.3,2069.1,0.61828704]
[1771001706566,2.52330833,2070.3,2069.1,0.61828704]
[1771001706766,2.52330833,2070.0,2068.9,0.61828704]
[1771001706966,2.52330833,2069.7,2068.8,0.00495984]
[1771001707368,8.04385534,2069.6,2068.8,0.00495984]
[1771001707570,7.086,2069.5,2068.8,0.00495984]
[1771001708165,7.086,2069.5,2068.3,0.61828704]
[1771001708371,2.52330833,2068.7,2067.6,1.24057304]
[1771001708570,7.091,2068.6,2067.6,1.24057304]
[1771001708869,40.8,2068.5,2067.5,0.62861201]
[1771001709073,40.8,2068.5,2067.2,0.62861201]
[1771001709268,8.04385534,2068.4,2067.2,0.63438015]
[1771001710374,7.108,2068.3,2067.2,0.63438015]
[1771001710874,8.04385534,2068.2,2067.2,0.63438015]
[1771001711576,8.04385534,2068.2,2067.2,0.00576814]
[1771001712177,7.108,2068.3,2067.2,0.64566319]
[1771001712377,8.04385534,2068.2,2067.2,0.64566319]
[1771001713977,8.04385534,2068.2,2067.4,0.64021464]
[1771001714679,8.04385534,2068.2,2067.6,0.64021464]
[1771001716380,0.00609344,2068.5,2067.8,0.6399912]
[1771001716678,4.014,2069.3,2068.2,0.63998948]
[1771001716978,40.8,2069.2,2068.4,0.63998948]
[1771001717274,41.00182606,2069.2,2068.3,0.2419]
[1771001717477,40.8,2069.2,2068.3,0.88097572]
[1771001717671,40.80592093,2069.2,2068.3,0.88097572]
[1771001718077,40.80592093,2069.2,2068.3,0.63907572]
[1771001718982,7.185,2069.1,2068.0,0.63907572]
[1771001719179,7.189,2069.0,2068.0,0.63907572]
[1771001719380,7.39282606,2069.1,2068.0,0.63907572]
[1771001720278,7.39282606,2069.1,2067.8,0.87682295]
[1771001720983,7.39282606,2069.1,2068.1,0.63487295]
[1771001720984,7.208,2069.0,2068.1,0.63487295]
[1771001721177,0.20182606,2068.9,2068.1,0.63487295]
[1771001721380,7.41482606,2069.1,2068.1,0.63487295]
[1771001722882,7.41482606,2069.1,2068.0,0.24193]
[1771001723180,7.22,2069.0,2068.1,0.63074775]
[1771001723681,0.20182606,2068.9,2068.1,0.63074775]
[1771001723982,0.20182606,2068.9,2068.3,0.64082079]
[1771001724278,40.80592093,2069.2,2068.5,0.64082079]
[1771001725781,40.80592093,2069.2,2068.2,0.64062287]
[1771001726382,40.80592093,2069.2,2068.0,0.64062287]
[1771001726583,40.80592093,2069.2,2067.4,11.57734529]
[1771001726584,40.80592093,2069.2,2067.5,0.64062287]
[1771001727679,0.2418,2069.1,2067.5,0.64062287]
[1771001727982,7.27,2069.0,2067.5,0.64062287]
[1771001728182,0.24183,2068.9,2067.5,0.64062287]
[1771001728386,40.8,2068.8,2067.5,0.64062287]
[1771001729082,0.24185,2068.7,2067.2,0.63965314]
[1771001729384,7.276,2068.6,2067.2,0.63965314]
[1771001730279,7.283,2068.5,2067.4,0.63351794]
[1771001730788,40.8,2068.8,2067.6,0.63351794]
[1771001730981,40.8,2068.8,2067.8,0.63351794]
[1771001731784,7.294,2068.7,2067.8,0.63351794]
[1771001732584,7.294,2068.7,2067.7,0.24197]
[1771001732787,7.294,2068.7,2067.8,0.63127175]
[1771001733188,7.294,2068.7,2067.4,5.00627175]
[1771001733385,7.294,2068.7,2067.5,0.63127175]
[1771001733587,7.294,2068.7,2067.7,0.63024256]
[1771001734183,7.31,2068.7,2067.7,0.63024256]
[1771001734790,7.31,2068.7,2067.9,0.63024256]
[1771001735191,40.8,2068.8,2068.1,0.63024256]
[1771001736392,40.8,2068.8,2068.0,0.24193]
[1771001737387,40.8,2068.8,2068.1,0.63477169]
[1771001738395,40.8,2068.8,2068.3,0.63477169]
[1771001739593,41.0,2068.8,2068.3,0.63477169]
[1771001740896,41.0,2068.8,2068.4,0.63018018]
[1771001741695,48.431,2068.8,2068.1,4.24241797]
[1771001741895,48.431,2068.8,2068.0,0.63035763]
[1771001742094,48.431,2068.8,2067.8,4.8727756]
[1771001742694,48.431,2068.8,2067.9,4.24241797]
[1771001743001,48.431,2068.8,2067.9,4.8727756]
[1771001744299,48.431,2068.8,2068.0,0.631947]
[1771001744594,7.472,2068.7,2068.1,0.631947]
[1771001745992,7.472,2068.7,2068.0,4.24241797]
[1771001746196,7.472,2068.7,2068.1,0.63206217]
[1771001746493,7.472,2068.7,2068.2,0.63206217]
[1771001746898,41.0,2068.8,2068.3,0.63206217]
[1771001747202,41.0,2068.8,2068.4,0.63206217]
[1771001747897,41.0,2068.8,2068.2,4.87445696]
[1771001748095,41.0,2068.8,2068.3,0.63203899]
[1771001748299,41.0,2068.8,2068.3,4.87445696]
[1771001749096,41.0,2068.8,2068.3,0.63203899]
[1771001750202,41.0,2068.8,2068.4,0.62986352]
[1771001751902,41.0,2068.8,2068.2,4.87382175]
[1771001752503,41.0,2068.8,2068.3,0.63140378]
[1771001754403,48.674,2068.8,2068.2,4.24241797]
[1771001754602,48.674,2068.8,2068.1,4.24241797]
[1771001755705,48.674,2068.8,2068.0,8.65141797]
[1771001756402,48.674,2068.8,2067.9,4.24241797]
[1771001756701,48.674,2068.8,2067.7,0.63417338]
[1771001757706,48.674,2068.8,2067.5,9.32569592]
[1771001757901,48.91585,2068.8,2067.5,4.24241797]
[1771001758096,7.755,2068.7,2067.6,0.63327795]
[1771001758300,7.758,2068.6,2067.7,0.63327795]
[1771001759400,7.758,2068.6,2067.6,0.24197]
[1771001759605,0.24187,2068.5,2067.4,0.62759947]
[1771001759806,0.24187,2068.5,2067.3,4.24241797]
[1771001760005,0.24187,2068.5,2067.2,4.87578558]
[1771001760406,0.24187,2068.5,2067.3,4.24241797]
[1771001760607,7.758,2068.6,2067.4,0.62759947]
[1771001760797,2.8809737,2068.7,2067.4,0.62759947]
[1771001761004,40.8,2068.4,2067.4,0.62759947]
[1771001761305,40.8,2068.4,2067.6,0.62759947]
[1771001762107,40.8,2068.4,2067.4,0.63027375]
[1771001762403,40.8,2068.4,2067.7,0.63027375]
[1771001762607,40.8,2068.4,2067.9,0.63027375]
[1771001765505,0.2,2068.8,2068.0,4.458]
[1771001765711,0.2,2068.8,2068.1,0.63044444]
[1771001766013,40.8,2068.7,2068.1,0.63044444]
[1771001766509,7.86,2068.6,2067.8,4.24241797]
[1771001766809,7.86,2068.6,2067.7,4.461]
[1771001767114,7.86,2068.6,2067.7,5.09144444]
[1771001767816,7.86,2068.6,2067.8,0.63074207]
[1771001768403,7.874,2068.6,2067.8,0.63074207]
[1771001768713,7.874,2068.6,2067.9,0.63074207]
[1771001768915,40.8,2068.7,2067.9,0.63074207]
[1771001769208,40.8,2068.7,2068.0,0.63074207]
[1771001770509,40.8,2068.7,2067.8,4.24241797]
[1771001770715,40.8,2068.7,2067.7,8.70341797]